bitfinex/quotes_BTCUSD_20240719
["timestamp","ask_amount","ask_price","bid_price","bid_amount"]
[1721431672572,0.00284,66875.0,66874.0,2.86861372]
[1721431673339,0.00284,66875.0,66874.0,3.03766111]
[1721431673511,0.00284,66875.0,66874.0,2.86861372]
[1721431673708,0.00284,66875.0,66874.0,2.86484223]
[1721431673923,0.00284,66875.0,66874.0,3.03388962]
[1721431674121,0.00284,66875.0,66874.0,2.86484223]
[1721431674523,0.00284,66875.0,66874.0,3.03388962]
[1721431674836,0.00284,66875.0,66874.0,2.86484223]
[1721431675142,0.00284,66875.0,66874.0,2.86861372]
[1721431675364,0.00284,66875.0,66874.0,2.74449937]
[1721431675514,0.00284,66875.0,66874.0,2.86861385]
[1721431675913,0.00284,66875.0,66874.0,3.03749576]
[1721431676078,0.00284,66875.0,66874.0,2.86861385]
[1721431676476,0.00284,66875.0,66874.0,3.03749576]
[1721431676700,0.00284,66875.0,66874.0,2.86861385]
[1721431677146,0.00284,66875.0,66874.0,3.03749576]
[1721431677887,0.00284,66875.0,66874.0,3.0376164]
[1721431678242,0.00284,66875.0,66874.0,2.86484236]
[1721431678423,0.00284,66875.0,66874.0,3.03383981]
[1721431679398,0.00284,66875.0,66874.0,2.62997081]
[1721431679602,0.00284,66875.0,66874.0,2.46097336]
[1721431679750,0.00284,66875.0,66874.0,2.46474485]
[1721431679955,0.00284,66875.0,66874.0,2.46097336]
[1721431680327,0.00284,66875.0,66874.0,2.46474485]
[1721431680526,0.07954,66875.0,66874.0,1.8861062]
[1721431680776,0.14384,66875.0,66874.0,0.93919146]
[1721431680939,0.14384,66875.0,66874.0,1.2382771]
[1721431681134,0.14384,66875.0,66874.0,1.39262667]
[1721431681848,0.14384,66875.0,66874.0,0.1596741]
[1721431682065,0.14284,66875.0,66874.0,0.1456741]
[1721431682570,0.14184,66875.0,66874.0,0.1316741]
[1721431682755,0.14184,66875.0,66874.0,0.1446741]
[1721431682957,0.14284,66875.0,66874.0,0.1446741]
[1721431683240,0.14284,66875.0,66874.0,0.1316741]
[1721431683462,0.14284,66875.0,66874.0,0.1356741]
[1721431683682,0.14384,66875.0,66874.0,0.1486741]
[1721431683856,0.14284,66875.0,66874.0,0.14468741]
[1721431684264,0.14184,66875.0,66874.0,0.13168741]
[1721431684464,0.14184,66875.0,66874.0,0.94168741]
[1721431684465,0.14384,66875.0,66874.0,0.94168741]
[1721431684690,0.14384,66875.0,66874.0,0.24081025]
[1721431684890,0.14384,66875.0,66874.0,0.13168741]
[1721431685092,0.14584,66875.0,66874.0,0.13168741]
[1721431687025,0.14584,66875.0,66874.0,0.00754298]
[1721431687223,0.14584,66875.0,66874.0,0.13168985]
[1721431687601,0.14569621,66875.0,66874.0,0.13168985]
[1721431688744,0.14569621,66875.0,66874.0,0.15981294]
[1721431688940,0.14569621,66875.0,66874.0,0.66168985]
[1721431690344,0.14569621,66875.0,66874.0,0.66168941]
[1721431690552,0.14569621,66875.0,66874.0,1.19529241]
[1721431691610,0.14369621,66875.0,66874.0,1.19529241]
[1721431691784,0.14369621,66875.0,66874.0,1.11029241]
[1721431691993,0.14369621,66875.0,66874.0,1.25972865]
[1721431692680,0.14169621,66875.0,66874.0,1.25972865]
[1721431692884,0.14369621,66875.0,66874.0,1.26272865]
[1721431693518,0.14169621,66875.0,66874.0,1.13858222]
[1721431693783,0.14169621,66875.0,66874.0,0.28621761]
[1721431693948,0.29122821,66875.0,66874.0,0.01254298]
[1721431694127,0.67529321,66875.0,66874.0,0.005]
[1721431695015,0.97435821,66875.0,66874.0,0.005]
[1721431696071,0.88935821,66875.0,66874.0,0.002]
[1721431696330,0.88935821,66875.0,66864.0,0.003718]
[1721431696331,0.149544,66870.0,66864.0,0.003718]
[1721431696584,0.149544,66870.0,66865.0,0.12416126]
[1721431696585,0.0771,66867.0,66865.0,0.12416126]
[1721431696830,0.0771,66867.0,66866.0,0.12416108]
[1721431697128,0.0771,66867.0,66866.0,0.67416108]
[1721431697834,0.0771,66867.0,66866.0,0.76022951]
[1721431698091,0.0771,66867.0,66866.0,0.90978151]
[1721431699585,0.0771,66867.0,66866.0,0.6776729]
[1721431699853,0.1387,66867.0,66866.0,0.6776729]
[1721431700098,0.1387,66867.0,66866.0,0.67767238]
[1721431702469,0.1387,66867.0,66866.0,0.67859638]
[1721431703207,0.1387,66867.0,66866.0,0.55443582]
[1721431703453,0.1387,66867.0,66866.0,0.67859751]
[1721431704639,1.12583374,66867.0,66866.0,0.00443582]
[1721431704868,1.42493474,66867.0,66866.0,0.00443582]
[1721431705086,1.42493474,66867.0,66866.0,0.000924]
[1721431706176,1.33993474,66867.0,66866.0,0.000924]
[1721431706844,1.35393474,66867.0,66866.0,0.001924]
[1721431707507,1.35293474,66867.0,66866.0,0.001924]
[1721431707719,1.36493474,66867.0,66866.0,0.002924]
[1721431714751,1.46493474,66867.0,66866.0,0.002924]
[1721431716784,1.36493474,66867.0,66866.0,0.002924]
[1721431718257,1.38838332,66867.0,66866.0,0.002924]
[1721431725935,0.93490058,66867.0,66866.0,0.002924]
[1721431738502,0.99129343,66867.0,66866.0,0.002924]
[1721431745211,1.035959,66867.0,66866.0,0.002924]
[1721431745413,0.63059243,66867.0,66866.0,0.002924]
[1721431745663,0.63059243,66867.0,66866.0,0.822924]
[1721431745835,0.55349243,66867.0,66866.0,0.822924]
[1721431746057,0.04844858,66867.0,66866.0,1.0988223]
[1721431746424,0.025,66867.0,66866.0,1.5474793]
[1721431747771,0.012,66867.0,66866.0,1.5464793]
[1721431748122,0.00884441,66870.0,66867.0,0.149549]
[1721431748277,0.00884441,66870.0,66868.0,0.12416479]
[1721431748443,0.0851,66871.0,66869.0,0.12416479]
[1721431748644,0.0851,66871.0,66870.0,0.12416479]
[1721431748893,0.0851,66871.0,66870.0,0.81416479]
[1721431749319,0.0851,66871.0,66870.0,0.69]
[1721431749488,0.0851,66871.0,66870.0,0.69349393]
[1721431750295,0.0951,66871.0,66870.0,0.69349393]
[1721431750499,0.01,66871.0,66870.0,0.69349393]
[1721431751063,0.02,66871.0,66870.0,0.69449393]
[1721431751666,0.01,66871.0,66870.0,0.00449393]
[1721431752092,0.01,66871.0,66870.0,0.75449393]
[1721431752297,0.02885765,66871.0,66870.0,0.75549393]
[1721431753364,0.02885765,66871.0,66870.0,0.00549393]
[1721431753533,0.02885765,66871.0,66870.0,0.68549393]
[1721431756247,0.02885765,66871.0,66870.0,0.68960519]
[1721431766029,0.02885765,66871.0,66870.0,0.69052919]
[1721431771528,0.02885765,66871.0,66870.0,0.81469304]
[1721431773943,0.02885765,66871.0,66870.0,0.69052919]
[1721431774146,0.02885765,66871.0,66870.0,0.81469304]
[1721431777452,0.02885765,66871.0,66870.0,0.81469303]
[1721431777867,0.02885765,66871.0,66870.0,0.69052919]
[1721431778081,0.02885765,66871.0,66870.0,0.8146929]
[1721431779127,0.02885765,66871.0,66870.0,1.25175021]
[1721431779329,0.02885765,66871.0,66870.0,1.84992421]
[1721431780310,0.01885765,66871.0,66870.0,1.84892421]
[1721431780500,0.00885765,66871.0,66870.0,1.84792421]
[1721431780683,0.00885765,66871.0,66870.0,1.7000099]
[1721431780684,0.01,66871.0,66870.0,1.7000099]
[1721431780885,0.016,66871.0,66870.0,1.7010099]
[1721431781103,0.006,66871.0,66870.0,1.6990099]
[1721431781527,0.008,66871.0,66870.0,1.6990099]
[1721431782940,0.008,66871.0,66870.0,1.3999229]
[1721431783273,0.008,66871.0,66870.0,1.3238229]
[1721431784060,0.008,66871.0,66870.0,1.32381892]
[1721431787392,0.008,66871.0,66870.0,1.32381899]
[1721431787927,0.008,66871.0,66870.0,1.02473199]
[1721431788135,0.008,66871.0,66870.0,0.96223199]
[1721431789021,0.008,66871.0,66870.0,0.9546268]
[1721431793046,0.008,66871.0,66870.0,0.8050838]
[1721431794493,0.1511,66871.0,66870.0,0.8050838]
[1721431794727,0.72313707,66871.0,66870.0,0.680924]
[1721431794924,0.7455052,66871.0,66870.0,0.680924]
[1721431795077,0.74115336,66871.0,66870.0,0.680924]
[1721431795291,0.8306052,66871.0,66870.0,0.680924]
[1721431795929,0.75189988,66871.0,66870.0,0.680924]
[1721431796700,0.80825086,66871.0,66870.0,0.680924]
[1721431796906,0.74117498,66871.0,66870.0,0.680924]
[1721431797666,0.65607498,66871.0,66870.0,0.680924]
[1721431798496,0.72313503,66871.0,66870.0,0.680924]
[1721431798664,0.66678405,66871.0,66870.0,0.680924]
[1721431799043,0.72313386,66871.0,66870.0,0.680924]
[1721431799272,0.66678405,66871.0,66870.0,0.680924]
[1721431800451,0.66678525,66871.0,66870.0,0.680924]
[1721431800679,0.66678525,66871.0,66870.0,0.000924]
[1721431800680,1.60613987,66871.0,66870.0,0.000924]
[1721431800887,1.60613987,66871.0,66864.0,0.000924]
[1721431800888,0.249555,66865.0,66864.0,0.000924]
[1721431801085,0.249555,66865.0,66852.0,0.002794]
[1721431801086,0.0606,66863.0,66852.0,0.002794]
[1721431801303,0.292684,66852.0,66848.0,0.46304871]
[1721431801503,1.0900547,66852.0,66845.0,0.47225571]
[1721431801708,1.0900545,66852.0,66845.0,0.009207]
[1721431801919,1.3892225,66852.0,66851.0,0.002924]
[1721431802124,1.34456974,66852.0,66851.0,0.002924]
[1721431802816,1.35656974,66852.0,66851.0,0.003924]
[1721431803227,1.40120667,66852.0,66851.0,0.003924]
[1721431803458,1.35656974,66852.0,66851.0,0.003924]
[1721431803816,1.36956974,66852.0,66851.0,0.004924]
[1721431805307,1.30729905,66852.0,66851.0,0.004924]
[1721431805518,1.30211987,66852.0,66851.0,0.004924]
[1721431807079,1.32557209,66852.0,66851.0,0.004924]
[1721431809800,1.33428308,66852.0,66851.0,0.004924]
[1721431812654,1.38428308,66852.0,66851.0,0.004924]
[1721431812892,1.192682,66846.0,66845.0,0.009207]
[1721431813095,1.192682,66846.0,66838.0,0.04996151]
[1721431813096,0.74802,66843.0,66838.0,0.04996151]
[1721431813300,0.74802,66843.0,66836.0,0.009207]
[1721431813301,1.71931774,66843.0,66836.0,0.009207]
[1721431815370,1.73031774,66843.0,66836.0,0.009207]
[1721431816839,1.80441774,66843.0,66836.0,0.009207]
[1721431817039,1.81841774,66843.0,66836.0,0.009207]
[1721431817266,1.74731774,66843.0,66836.0,0.009207]
[1721431817527,1.83241774,66843.0,66836.0,0.009207]
[1721431817723,1.81841774,66843.0,66836.0,0.009207]
[1721431818125,1.83241774,66843.0,66836.0,0.009207]
[1721431818328,1.07590174,66843.0,66836.0,0.009207]
[1721431818691,1.16100174,66843.0,66836.0,0.009207]
[1721431819037,1.00150174,66843.0,66836.0,0.009207]
[1721431819372,1.01550174,66843.0,66836.0,0.009207]
[1721431819673,1.00150174,66843.0,66836.0,0.012001]
[1721431819867,0.98750174,66843.0,66836.0,0.012001]
[1721431820088,1.01550174,66843.0,66836.0,0.012001]
[1721431820512,0.1131,66843.0,66836.0,0.009207]
[1721431820716,0.014,66843.0,66842.0,0.084307]
[1721431820844,0.028,66843.0,66842.0,0.1226599]
[1721431821062,0.028,66843.0,66842.0,0.13276524]
[1721431821454,0.014,66843.0,66842.0,0.19746524]
[1721431821662,0.028,66843.0,66842.0,0.19746524]
[1721431821962,0.014,66843.0,66842.0,0.15911234]
[1721431822165,0.02286176,66843.0,66842.0,0.15911234]
[1721431822363,0.02,66843.0,66842.0,0.30871834]
[1721431822557,0.02,66843.0,66842.0,0.67753449]
[1721431822558,0.014,66843.0,66842.0,0.67753449]
[1721431822761,0.014,66843.0,66842.0,1.68714434]
[1721431822959,0.021,66843.0,66842.0,1.68714434]
[1721431823162,0.02345222,66852.0,66847.0,0.149595]
[1721431823487,0.02345222,66852.0,66848.0,0.002794]
[1721431824104,0.02345222,66852.0,66846.0,0.002794]
[1721431824448,0.03258089,66852.0,66846.0,0.002794]
[1721431824648,0.03258089,66852.0,66847.0,0.09506352]
[1721431824851,0.03258089,66852.0,66848.0,0.002794]
[1721431825073,0.03258089,66852.0,66848.0,0.15597836]
[1721431825280,0.19416489,66852.0,66848.0,0.00638636]
[1721431825688,0.18216489,66852.0,66848.0,0.00638636]
[1721431825911,0.18216489,66852.0,66848.0,0.00359236]
[1721431826246,0.149586,66851.0,66848.0,0.00359236]
[1721431826449,0.149586,66851.0,66846.0,0.149596]
[1721431826648,0.149586,66851.0,66849.0,0.0102228]
[1721431826877,0.149586,66851.0,66846.0,0.149596]
[1721431827089,0.149586,66851.0,66850.0,0.00662546]
[1721431827355,0.234686,66851.0,66847.0,0.002794]
[1721431827567,0.234686,66851.0,66850.0,0.00662546]
[1721431827568,0.243686,66851.0,66850.0,0.00662546]
[1721431827739,0.243686,66851.0,66847.0,0.002794]
[1721431827948,0.243686,66851.0,66850.0,0.00662546]
[1721431828169,0.234686,66851.0,66847.0,0.002794]
[1721431828369,0.533858,66851.0,66850.0,0.01020887]
[1721431828732,0.533858,66851.0,66844.0,0.1496]
[1721431828733,0.149589,66850.0,66844.0,0.1496]
[1721431828943,0.293489,66850.0,66845.0,0.002794]
[1721431829157,0.293489,66850.0,66845.0,0.01307254]
[1721431829568,0.149591,66849.0,66845.0,0.01307254]
[1721431829773,0.0851,66848.0,66845.0,0.01307254]
[1721431830060,0.747987,66846.0,66845.0,0.01027854]
[1721431830413,0.74802,66843.0,66842.0,0.009207]
[1721431830592,1.36388453,66843.0,66842.0,0.009207]
[1721431831040,1.50778453,66843.0,66842.0,0.009207]
[1721431831221,1.80699253,66843.0,66842.0,0.009207]
[1721431831595,1.72981774,66843.0,66842.0,0.009207]
[1721431831798,1.93416731,66843.0,66842.0,0.009207]
[1721431832028,1.113122,66837.0,66836.0,0.009207]
[1721431832265,1.36750374,66837.0,66836.0,0.009207]
[1721431833317,1.45260374,66837.0,66836.0,0.009207]
[1721431834504,1.46160374,66837.0,66836.0,0.009207]
[1721431834727,1.47060374,66837.0,66836.0,0.009207]
[1721431835156,1.46160374,66837.0,66836.0,0.009207]
[1721431835366,1.47560374,66837.0,66836.0,0.009207]
[1721431835680,1.45260374,66837.0,66836.0,0.009207]
[1721431836127,1.48060374,66837.0,66836.0,0.009207]
[1721431836553,0.462852,66837.0,66836.0,0.009207]
[1721431836964,0.776087,66837.0,66836.0,0.009207]
[1721431837166,0.762087,66837.0,66836.0,0.01596489]
[1721431837338,0.762087,66837.0,66836.0,0.009207]
[1721431837339,1.28680374,66837.0,66836.0,0.009207]
[1721431837569,1.30080374,66837.0,66836.0,0.009207]
[1721431838107,1.31080374,66837.0,66836.0,0.009207]
[1721431838307,1.30080374,66837.0,66836.0,0.009207]
[1721431838760,1.31480374,66837.0,66836.0,0.009207]
[1721431838967,1.32375339,66837.0,66836.0,0.009207]
[1721431839201,1.30975339,66837.0,66836.0,0.009207]
[1721431839362,1.31975339,66837.0,66836.0,0.009207]
[1721431839916,1.30975339,66837.0,66836.0,0.009207]
[1721431840156,1.32375339,66837.0,66836.0,0.009207]
[1721431840411,0.93941839,66837.0,66836.0,0.009207]
[1721431841450,0.92541839,66837.0,66836.0,0.009207]
[1721431841917,0.78503665,66837.0,66836.0,0.009207]
[1721431842762,0.77103665,66837.0,66836.0,0.009207]
[1721431843100,0.78503665,66837.0,66836.0,0.009207]
[1721431843318,0.87013665,66837.0,66836.0,0.009207]
[1721431853415,1.47165339,66837.0,66836.0,0.009207]
[1721431853586,1.02451839,66837.0,66836.0,0.009207]
[1721431856938,0.03694965,66837.0,66836.0,0.151907]
[1721431857172,0.03694965,66837.0,66836.0,0.1682184]
[1721431857328,0.03694965,66837.0,66836.0,0.17862236]
[1721431857519,0.03694965,66837.0,66836.0,0.16231096]
[1721431858262,0.02294965,66837.0,66836.0,0.16231096]
[1721431858477,0.01794965,66837.0,66836.0,0.16231096]
[1721431858698,0.02294965,66837.0,66836.0,0.16231096]
[1721431859067,0.01194965,66837.0,66836.0,0.16231096]
[1721431859469,0.01594965,66837.0,66836.0,0.16231096]
[1721431860471,0.01594965,66837.0,66836.0,0.28653576]
[1721431862279,0.01594965,66837.0,66836.0,0.80653576]
[1721431862470,0.01594965,66837.0,66836.0,0.28653576]
[1721431862696,0.01594965,66837.0,66836.0,0.16231096]
[1721431862959,0.01594965,66837.0,66836.0,0.28653519]
[1721431863085,0.01594965,66837.0,66836.0,1.02653519]
[1721431863271,0.01594965,66837.0,66836.0,1.17615419]
[1721431863468,0.007,66837.0,66836.0,1.77463219]
[1721431864075,0.007,66837.0,66836.0,1.03463219]
[1721431864275,0.007,66837.0,66836.0,1.21539319]
[1721431864480,0.003,66837.0,66836.0,1.21539319]
[1721431864935,0.00084,66842.0,66838.0,0.149613]
[1721431865245,0.00954479,66842.0,66840.0,0.14961]
[1721431865393,0.00954479,66842.0,66841.0,0.002794]
[1721431865600,0.00954479,66842.0,66841.0,0.442794]
[1721431865858,0.00954479,66842.0,66841.0,0.44]
[1721431866238,0.01754479,66842.0,66841.0,0.44]
[1721431868071,0.02554479,66842.0,66841.0,0.44]
[1721431868249,0.03354479,66842.0,66841.0,0.44]
[1721431868861,0.03354479,66842.0,66841.0,0.44362369]
[1721431876105,0.03354479,66842.0,66841.0,0.45033427]
[1721431876508,0.03354479,66842.0,66841.0,0.59994227]
[1721431876708,0.03354479,66842.0,66841.0,0.57454705]
[1721431877330,0.03354479,66842.0,66841.0,0.45033427]
[1721431880753,1.53984632,66842.0,66841.0,0.01033427]
[1721431880952,1.56330151,66842.0,66841.0,0.01033427]
[1721431881177,0.748087,66837.0,66836.0,0.009207]
[1721431881378,0.833187,66837.0,66836.0,0.009207]
[1721431883233,0.49826149,66841.0,66836.0,0.009207]
[1721431883234,0.299219,66841.0,66837.0,0.002794]
[1721431883441,0.149615,66838.0,66837.0,0.002794]
[1721431883771,0.149615,66838.0,66836.0,0.009207]
[1721431883970,0.149615,66838.0,66837.0,0.002794]
[1721431884177,0.149615,66838.0,66836.0,0.009207]
[1721431884380,0.149615,66838.0,66837.0,0.002794]
[1721431884585,0.149615,66838.0,66837.0,0.53]
[1721431884824,0.149615,66838.0,66837.0,0.5336416]
[1721431885166,0.153615,66838.0,66837.0,0.0036416]
[1721431885782,0.157615,66838.0,66837.0,0.0036416]
[1721431886612,0.153615,66838.0,66837.0,0.0036416]
[1721431886985,0.157615,66838.0,66837.0,0.0036416]
[1721431891150,0.157615,66838.0,66837.0,0.01039003]
[1721431891710,0.456845,66838.0,66837.0,0.01039003]
[1721431894776,0.456845,66838.0,66837.0,0.01131403]
[1721431897442,0.453845,66838.0,66837.0,0.01131403]
[1721431897954,0.453845,66838.0,66837.0,0.53131403]
[1721431898494,0.453845,66838.0,66837.0,0.01131403]
[1721431904745,0.453845,66838.0,66837.0,0.62131403]
[1721431905141,0.453845,66838.0,66837.0,0.83863335]
[1721431906580,0.008,66838.0,66837.0,0.83863335]
[1721431910422,0.008,66838.0,66837.0,0.13553775]
[1721431910619,0.157615,66838.0,66837.0,0.13553775]
[1721431911548,0.157615,66838.0,66837.0,0.1355359]
[1721431914734,0.157615,66838.0,66837.0,0.01131403]
[1721431915088,0.157615,66838.0,66837.0,0.1355359]
[1721431915262,0.157615,66838.0,66837.0,0.13553589]
[1721431918232,0.157615,66838.0,66837.0,0.1355359]
[1721431919409,0.456845,66838.0,66837.0,0.1355359]
[1721431923838,0.456845,66838.0,66837.0,0.13553596]
[1721431926530,0.457685,66838.0,66837.0,0.13553596]
[1721431928523,0.542785,66838.0,66837.0,0.13553596]
[1721431928942,0.842015,66838.0,66837.0,0.13553596]
[1721431929567,0.842015,66838.0,66837.0,0.12514593]
[1721431930146,0.842015,66838.0,66837.0,0.000924]
[1721431930348,0.842015,66838.0,66837.0,0.12514632]
[1721431933886,1.141245,66838.0,66837.0,0.12514632]
[1721431934111,1.280545,66838.0,66837.0,0.12514632]
[1721431934435,1.94491599,66838.0,66837.0,0.000924]
[1721431934630,1.94403191,66838.0,66837.0,0.000924]
[1721431934831,1.94403191,66838.0,66835.0,0.009207]
[1721431934832,1.122936,66836.0,66835.0,0.009207]
[1721431935004,1.58496592,66836.0,66835.0,0.009207]
[1721431935331,1.45089291,66836.0,66835.0,0.009207]
[1721431935859,1.50908638,66836.0,66835.0,0.009207]
[1721431936418,1.39742742,66836.0,66835.0,0.009207]
[1721431936610,1.41142742,66836.0,66835.0,0.009207]
[1721431937403,1.50071757,66836.0,66835.0,0.009207]
[1721431937682,1.51471757,66836.0,66835.0,0.009207]
[1721431939388,1.42542742,66836.0,66835.0,0.009207]
[1721431940390,1.49236461,66836.0,66835.0,0.009207]
[1721431940586,1.42542742,66836.0,66835.0,0.009207]
[1721431941538,1.49235555,66836.0,66835.0,0.009207]
[1721431942312,1.43594587,66836.0,66835.0,0.009207]
[1721431943318,1.435936,66836.0,66835.0,0.009207]
[1721431943922,1.57628557,66836.0,66835.0,0.009207]
[1721431944552,1.56228557,66836.0,66835.0,0.009207]
[1721431944754,1.421936,66836.0,66835.0,0.009207]
[1721431945360,1.36901774,66836.0,66835.0,0.009207]
[1721431948276,1.41362453,66836.0,66835.0,0.009207]
[1721431949869,1.41362098,66836.0,66835.0,0.009207]
[1721431950174,1.36901774,66836.0,66835.0,0.009207]
[1721431950313,1.41362102,66836.0,66835.0,0.009207]
[1721431951140,1.56797059,66836.0,66835.0,0.009207]
[1721431951505,1.41362102,66836.0,66835.0,0.009207]
[1721431953081,1.41361513,66836.0,66835.0,0.009207]
[1721431954494,0.177619,66836.0,66835.0,0.154207]
[1721431954690,0.177619,66836.0,66835.0,0.1646249]
[1721431954889,0.476858,66836.0,66835.0,0.154207]
[1721431955090,0.476858,66836.0,66835.0,0.1646249]
[1721431955461,0.462858,66836.0,66835.0,0.1646249]
[1721431955793,0.476858,66836.0,66835.0,0.1646249]
[1721431955993,0.177619,66836.0,66835.0,0.1646249]
[1721431956329,0.163619,66836.0,66835.0,0.1646249]
[1721431956460,0.014,66836.0,66835.0,0.19625059]
[1721431956684,0.014,66836.0,66835.0,0.1646249]
[1721431957085,0.023,66836.0,66835.0,0.1646249]
[1721431957307,0.009,66836.0,66835.0,0.1646249]
[1721431957505,0.018,66836.0,66835.0,0.1646249]
[1721431958759,0.01884,66836.0,66835.0,0.1646249]
[1721431960947,0.01884,66836.0,66835.0,0.51376297]
[1721431961303,0.01884,66836.0,66835.0,0.3142469]
[1721431962091,0.00984,66836.0,66835.0,0.3142469]
[1721431962294,0.01184,66836.0,66835.0,0.3142469]
[1721431962872,0.00284,66836.0,66835.0,0.3142469]
[1721431963278,0.00484,66836.0,66835.0,0.3142469]
[1721431963717,0.00284,66836.0,66835.0,0.3142469]
[1721431963919,0.00384,66836.0,66835.0,0.3142469]
[1721431964118,0.00484,66836.0,66835.0,0.3142469]
[1721431968199,0.00484,66836.0,66835.0,0.1646249]
[1721431971732,0.00484,66836.0,66835.0,0.7646249]
[1721431972365,0.00484,66836.0,66835.0,0.88884898]
[1721431973830,0.00484,66836.0,66835.0,0.7646249]
[1721431976473,0.00484,66836.0,66835.0,0.88884788]
[1721431979310,0.00484,66836.0,66835.0,0.88884775]
[1721431979515,0.154459,66836.0,66835.0,0.88884775]
[1721431979690,0.154459,66836.0,66835.0,0.74384775]
[1721431981593,0.154459,66836.0,66835.0,0.74384918]
[1721431982039,0.00484,66836.0,66835.0,0.847397]
[1721431983542,0.00484,66836.0,66835.0,0.74384918]
[1721431985024,0.829037,66836.0,66835.0,0.74384918]
[1721431985229,0.829037,66836.0,66835.0,0.14384918]
[1721431985463,0.829037,66836.0,66835.0,0.009207]
[1721431985464,1.191976,66836.0,66835.0,0.009207]
[1721431985870,1.37099725,66836.0,66835.0,0.009207]
[1721431986161,1.39333215,66836.0,66835.0,0.009207]
[1721431986363,1.30299257,66836.0,66835.0,0.009207]
[1721431986536,1.39231978,66836.0,66835.0,0.009207]
[1721431986736,1.31699257,66836.0,66835.0,0.009207]
[1721431987137,1.30299257,66836.0,66835.0,0.009207]
[1721431987353,1.38932396,66836.0,66835.0,0.009207]
[1721431987565,1.27245679,66836.0,66835.0,0.009207]
[1721431987989,1.25845679,66836.0,66835.0,0.009207]
[1721431989429,1.27245679,66836.0,66835.0,0.009207]
[1721431991648,1.215976,66836.0,66835.0,0.009207]
[1721431992799,1.076176,66836.0,66835.0,0.009207]
[1721431993102,1.161276,66836.0,66835.0,0.009207]
[1721432001186,0.477698,66836.0,66835.0,0.150507]
[1721432002110,0.776937,66836.0,66835.0,0.009207]
[1721432002281,0.762937,66836.0,66835.0,0.009207]
[1721432002514,1.150676,66836.0,66835.0,0.009207]
[1721432002754,1.136676,66836.0,66835.0,0.009207]
[1721432003164,1.150676,66836.0,66835.0,0.009207]
[1721432004548,1.136676,66836.0,66835.0,0.009207]
[1721432005390,1.146676,66836.0,66835.0,0.009207]
[1721432008998,1.19134611,66836.0,66835.0,0.009207]
[1721432009309,1.146676,66836.0,66835.0,0.009207]
[1721432012920,1.51184127,66836.0,66835.0,0.009207]
[1721432013127,1.80724518,66836.0,66835.0,0.009207]
[1721432013561,1.76885388,66836.0,66835.0,0.009207]
[1721432013766,1.76919762,66836.0,66835.0,0.008507]
[1721432014031,1.75919762,66836.0,66835.0,0.008507]
[1721432014371,1.76219762,66836.0,66835.0,0.008507]
[1721432014578,1.76219762,66836.0,66835.0,0.008407]
[1721432014779,1.76219762,66836.0,66835.0,0.007807]
[1721432015093,1.77619762,66836.0,66835.0,0.007807]
[1721432015501,1.77619762,66836.0,66835.0,0.007407]
[1721432015725,1.77619762,66836.0,66835.0,0.007307]
[1721432015922,1.76219762,66836.0,66835.0,0.007207]
[1721432016127,1.76219762,66836.0,66835.0,0.007107]
[1721432016327,1.77619762,66836.0,66835.0,0.007107]
[1721432016954,1.72490329,66836.0,66835.0,0.007107]
[1721432017207,1.77624535,66836.0,66835.0,0.007107]
[1721432017353,1.8655941,66836.0,66835.0,0.007107]
[1721432017554,1.79191689,66836.0,66835.0,0.007107]
[1721432017753,1.72490329,66836.0,66835.0,0.007107]
[1721432021269,1.79193557,66836.0,66835.0,0.007107]
[1721432021909,1.81539448,66836.0,66835.0,0.007107]
[1721432022711,1.67679448,66836.0,66835.0,0.007107]
[1721432023088,1.76189448,66836.0,66835.0,0.007107]
[1721432023638,1.76191556,66836.0,66835.0,0.007107]
[1721432024256,1.6948622,66836.0,66835.0,0.007107]
[1721432025331,1.3956232,66836.0,66835.0,0.007107]
[1721432027500,1.48506901,66836.0,66835.0,0.007107]
[1721432029444,1.3956232,66836.0,66835.0,0.007107]
[1721432030568,1.50748677,66836.0,66835.0,0.007107]
[1721432033287,1.3956232,66836.0,66835.0,0.007107]
[1721432033500,1.50763681,66836.0,66835.0,0.007107]
[1721432033701,1.50763681,66836.0,66835.0,0.0224577]
[1721432033881,0.55766346,66836.0,66835.0,0.149007]
[1721432034082,0.64276346,66836.0,66835.0,0.149007]
[1721432034292,0.70997349,66836.0,66835.0,0.149007]
[1721432034530,0.65346694,66836.0,66835.0,0.149007]
[1721432034723,0.57225691,66836.0,66835.0,0.149007]
[1721432035138,0.58625691,66836.0,66835.0,0.149007]
[1721432035519,0.57225691,66836.0,66835.0,0.149007]
[1721432035951,0.58625691,66836.0,66835.0,0.149007]
[1721432036149,0.57225691,66836.0,66835.0,0.149007]
[1721432036354,0.55825691,66836.0,66835.0,0.149007]
[1721432036615,0.57025691,66836.0,66835.0,0.149007]
[1721432036845,0.58125691,66836.0,66835.0,0.149007]
[1721432038129,0.71765691,66836.0,66835.0,0.007107]
[1721432038332,0.86383257,66836.0,66835.0,0.007107]
[1721432038663,1.37270068,66836.0,66835.0,0.007107]
[1721432040347,1.68143199,66836.0,66835.0,0.007107]
[1721432040892,1.52708242,66836.0,66835.0,0.007107]
[1721432041090,1.57862309,66836.0,66835.0,0.007107]
[1721432042366,1.57893066,66836.0,66835.0,0.007107]
[1721432042944,1.57892761,66836.0,66835.0,0.007107]
[1721432045582,1.57889245,66836.0,66835.0,0.007107]
[1721432045784,1.5788931,66836.0,66835.0,0.007107]
[1721432048870,1.52708242,66836.0,66835.0,0.007107]
[1721432049125,1.57891867,66836.0,66835.0,0.007107]
[1721432052317,1.57896278,66836.0,66835.0,0.007107]
[1721432053774,1.52708242,66836.0,66835.0,0.007107]
[1721432055670,1.48030933,66836.0,66835.0,0.007107]
[1721432055870,1.32592759,66836.0,66835.0,0.007107]
[1721432060342,1.23630068,66836.0,66835.0,0.007107]
[1721432060544,1.32592447,66836.0,66835.0,0.007107]
[1721432062154,1.32592557,66836.0,66835.0,0.007107]
[1721432065348,1.23630068,66836.0,66835.0,0.007107]
[1721432065549,1.32592401,66836.0,66835.0,0.007107]
[1721432066829,1.40472401,66836.0,66835.0,0.007107]
[1721432067505,1.40472537,66836.0,66835.0,0.007107]
[1721432068717,1.40472486,66836.0,66835.0,0.007107]
[1721432068892,1.31510068,66836.0,66835.0,0.007107]